[Event "December 5 Late 2023"]
[Site "https://www.chess.com"]
[Date "2023.12.05"]
[Round "6"]
[White "KhalilMousavi98"]
[Black "Svane, Frederik"]
[Result "1/2-1/2"]
[Board "18"]
[TimeControl "180+1"]
[BlackFideId "12923044"]
[WhiteElo "2814"]
[BlackElo "2939"]
[BlackTeam "GER"]
[WhiteClock "0:00:05"]
[BlackClock "0:00:14"]

1. d4 {[%clk 0:03:00]}  Nf6 {[%clk 0:02:59]} 2. c4 {[%clk 0:02:57]}  e6 {[%clk 0:02:59]} 3. Nf3 {[%clk 0:02:57]}  d5 {[%clk 0:03:00]} 4. Nc3 {[%clk 0:02:56]}  Nbd7 {[%clk 0:03:00]} 5. cxd5 {[%clk 0:02:55]}  exd5 {[%clk 0:03:01]} 6. Bg5 {[%clk 0:02:56]}  h6 {[%clk 0:02:58]} 7. Bh4 {[%clk 0:02:54]}  Bb4 {[%clk 0:02:58]} 8. e3 {[%clk 0:02:48]}  g5 {[%clk 0:02:58]} 9. Bg3 {[%clk 0:02:49]}  Ne4 {[%clk 0:02:58]} 10. Qb3 {[%clk 0:02:46]}  c5 {[%clk 0:02:50]} 11. Bb5 {[%clk 0:02:45]}  Qa5 {[%clk 0:02:22]} 12. Bxd7+ {[%clk 0:02:44]}  Bxd7 {[%clk 0:02:22]} 13. Qxd5 {[%clk 0:02:14]}  Bxc3+ {[%clk 0:02:21]} 14. Kf1 {[%clk 0:02:14]}  O-O-O {[%clk 0:01:55]} 15. Qxe4 {[%clk 0:02:07]}  Bxb2 {[%clk 0:01:47]} 16. Rb1 {[%clk 0:02:06]}  Qc3 {[%clk 0:01:41]} 17. Kg1 {[%clk 0:01:38]}  Rhe8 {[%clk 0:01:39]} 18. Ne5 {[%clk 0:01:38]}  f6 {[%clk 0:01:33]} 19. Nf7 {[%clk 0:01:15]}  Rxe4 {[%clk 0:00:19]} 20. Nd6+ {[%clk 0:01:14]}  Kc7 {[%clk 0:00:19]} 21. Nxe4+ {[%clk 0:01:15]}  Kc6 {[%clk 0:00:20]} 22. Nxc3 {[%clk 0:01:08]}  Bxc3 {[%clk 0:00:21]} 23. h4 {[%clk 0:01:04]}  cxd4 {[%clk 0:00:21]} 24. hxg5 {[%clk 0:01:01]}  hxg5 {[%clk 0:00:21]} 25. Rc1 {[%clk 0:00:59]}  Kd5 {[%clk 0:00:20]} 26. exd4 {[%clk 0:00:59]}  Bxd4 {[%clk 0:00:21]} 27. Rh7 {[%clk 0:00:51]}  Bc6 {[%clk 0:00:21]} 28. Re7 {[%clk 0:00:48]}  f5 {[%clk 0:00:15]} 29. Bc7 {[%clk 0:00:41]}  Rc8 {[%clk 0:00:13]} 30. Rd1 {[%clk 0:00:40]}  Kc4 {[%clk 0:00:13]} 31. Be5 {[%clk 0:00:35]}  Bb6 {[%clk 0:00:11]} 32. Rg7 {[%clk 0:00:27]}  g4 {[%clk 0:00:11]} 33. Rf7 {[%clk 0:00:26]}  Rg8 {[%clk 0:00:04]} 34. Bg3 {[%clk 0:00:23]}  Re8 {[%clk 0:00:01]} 35. Rxf5 {[%clk 0:00:22]}  Re2 {[%clk 0:00:02]} 36. Rf4+ {[%clk 0:00:22]}  Kb5 {[%clk 0:00:02]} 37. Rxg4 {[%clk 0:00:21]}  Rxa2 {[%clk 0:00:03]} 38. Rg5+ {[%clk 0:00:22]}  Kc4 {[%clk 0:00:03]} 39. Rc1+ {[%clk 0:00:20]}  Kd3 {[%clk 0:00:03]} 40. Re5 {[%clk 0:00:19]}  a5 {[%clk 0:00:03]} 41. Ree1 {[%clk 0:00:15]}  a4 {[%clk 0:00:03]} 42. Red1+ {[%clk 0:00:14]}  Ke4 {[%clk 0:00:03]} 43. Rb1 {[%clk 0:00:10]}  Bc5 {[%clk 0:00:03]} 44. Rdc1 {[%clk 0:00:09]}  b6 {[%clk 0:00:03]} 45. Rc4+ {[%clk 0:00:09]}  Kd5 {[%clk 0:00:03]} 46. Rc3 {[%clk 0:00:09]}  Rd2 {[%clk 0:00:03]} 47. Re1 {[%clk 0:00:08]}  a3 {[%clk 0:00:04]} 48. Re5+ {[%clk 0:00:07]}  Kd4 {[%clk 0:00:04]} 49. Rexc5 {[%clk 0:00:05]}  bxc5 {[%clk 0:00:05]} 50. Rxa3 {[%clk 0:00:06]}  c4 {[%clk 0:00:06]} 51. Bf4 {[%clk 0:00:05]}  Rd1+ {[%clk 0:00:06]} 52. Kh2 {[%clk 0:00:06]}  c3 {[%clk 0:00:07]} 53. Be3+ {[%clk 0:00:06]}  Kd3 {[%clk 0:00:07]} 54. Ra5 {[%clk 0:00:06]}  c2 {[%clk 0:00:06]} 55. Rc5 {[%clk 0:00:06]}  Be4 {[%clk 0:00:06]} 56. Kg3 {[%clk 0:00:07]}  Rg1 {[%clk 0:00:06]} 57. Kf4 {[%clk 0:00:05]}  Bxg2 {[%clk 0:00:06]} 58. f3 {[%clk 0:00:04]}  Rf1 {[%clk 0:00:06]} 59. Rd5+ {[%clk 0:00:04]}  Kc4 {[%clk 0:00:06]} 60. Rc5+ {[%clk 0:00:04]}  Kd3 {[%clk 0:00:07]} 61. Rd5+ {[%clk 0:00:04]}  Kc3 {[%clk 0:00:05]} 62. Rc5+ {[%clk 0:00:04]}  Kb3 {[%clk 0:00:06]} 63. Rb5+ {[%clk 0:00:04]}  Ka4 {[%clk 0:00:06]} 64. Rc5 {[%clk 0:00:05]}  Rxf3+ {[%clk 0:00:07]} 65. Ke4 {[%clk 0:00:05]}  Rh3+ {[%clk 0:00:04]} 66. Kd3 {[%clk 0:00:04]}  Bf1+ {[%clk 0:00:04]} 67. Kd2 {[%clk 0:00:03]}  Rh2+ {[%clk 0:00:04]} 68. Kc1 {[%clk 0:00:03]}  Re2 {[%clk 0:00:04]} 69. Bd2 {[%clk 0:00:03]}  Bg2 {[%clk 0:00:04]} 70. Rc4+ {[%clk 0:00:02]}  Kb3 {[%clk 0:00:04]} 71. Rc3+ {[%clk 0:00:03]}  Ka4 {[%clk 0:00:05]} 72. Rc4+ {[%clk 0:00:03]}  Kb5 {[%clk 0:00:06]} 73. Rxc2 {[%clk 0:00:04]}  Be4 {[%clk 0:00:07]} 74. Rc3 {[%clk 0:00:03]}  Rg2 {[%clk 0:00:07]} 75. Re3 {[%clk 0:00:03]}  Bd5 {[%clk 0:00:08]} 76. Kb2 {[%clk 0:00:04]}  Kc4 {[%clk 0:00:08]} 77. Rc3+ {[%clk 0:00:03]}  Kd4 {[%clk 0:00:09]} 78. Kc1 {[%clk 0:00:03]}  Rg1+ {[%clk 0:00:09]} 79. Kb2 {[%clk 0:00:03]}  Rg2 {[%clk 0:00:10]} 80. Kc1 {[%clk 0:00:04]}  Be4 {[%clk 0:00:10]} 81. Re3 {[%clk 0:00:04]}  Rg1+ {[%clk 0:00:10]} 82. Re1 {[%clk 0:00:04]}  Rg6 {[%clk 0:00:10]} 83. Be3+ {[%clk 0:00:03]}  Kd3 {[%clk 0:00:10]} 84. Bf2 {[%clk 0:00:02]}  Rc6+ {[%clk 0:00:11]} 85. Kb1 {[%clk 0:00:02]}  Kd2+ {[%clk 0:00:11]} 86. Kb2 {[%clk 0:00:02]}  Bd3 {[%clk 0:00:10]} 87. Re5 {[%clk 0:00:02]}  Rc2+ {[%clk 0:00:10]} 88. Kb3 {[%clk 0:00:02]}  Bc4+ {[%clk 0:00:10]} 89. Kb4 {[%clk 0:00:03]}  Bd3 {[%clk 0:00:10]} 90. Be3+ {[%clk 0:00:02]}  Ke2 {[%clk 0:00:10]} 91. Bc5+ {[%clk 0:00:03]}  Kd2 {[%clk 0:00:10]} 92. Ka5 {[%clk 0:00:04]}  Ra2+ {[%clk 0:00:10]} 93. Kb6 {[%clk 0:00:04]}  Kc3 {[%clk 0:00:10]} 94. Bd6 {[%clk 0:00:03]}  Ra6+ {[%clk 0:00:11]} 95. Kc7 {[%clk 0:00:03]}  Kd4 {[%clk 0:00:11]} 96. Rc5 {[%clk 0:00:03]}  Ra7+ {[%clk 0:00:12]} 97. Kb6 {[%clk 0:00:03]}  Ra6+ {[%clk 0:00:12]} 98. Kc7 {[%clk 0:00:03]}  Bc4 {[%clk 0:00:13]} 99. Rc6 {[%clk 0:00:04]}  Ra7+ {[%clk 0:00:13]} 100. Kb6 {[%clk 0:00:04]}  Ra6+ {[%clk 0:00:14]} 101. Kc7 {[%clk 0:00:05]}  Rxc6+ {[%clk 0:00:14]} 102. Kxc6 {[%clk 0:00:05]} 1/2-1/2

[Event "December 5 Late 2023"]
[Site "https://www.chess.com"]
[Date "2023.12.05"]
[Round "6"]
[White "Holt, Conrad"]
[Black "Svane, Rasmus"]
[Result "1-0"]
[Board "19"]
[TimeControl "180+1"]
[WhiteFideId "2034387"]
[BlackFideId "4657101"]
[WhiteElo "2804"]
[BlackElo "2938"]
[WhiteTeam "USA"]
[BlackTeam "GER"]
[WhiteClock "0:01:00"]
[BlackClock "0:00:00"]

1. d4 {[%clk 0:03:00]}  d5 {[%clk 0:02:55]} 2. c4 {[%clk 0:03:01]}  e6 {[%clk 0:02:56]} 3. Nc3 {[%clk 0:03:00]}  h6 {[%clk 0:02:56]} 4. cxd5 {[%clk 0:02:53]}  exd5 {[%clk 0:02:57]} 5. Bf4 {[%clk 0:02:53]}  Nf6 {[%clk 0:02:52]} 6. e3 {[%clk 0:02:53]}  Bd6 {[%clk 0:02:52]} 7. Bxd6 {[%clk 0:02:51]}  Qxd6 {[%clk 0:02:53]} 8. Bd3 {[%clk 0:02:51]}  O-O {[%clk 0:02:51]} 9. Qc2 {[%clk 0:02:46]}  Re8 {[%clk 0:02:48]} 10. Nb5 {[%clk 0:02:43]}  Qb4+ {[%clk 0:02:40]} 11. Qc3 {[%clk 0:02:43]}  Qxc3+ {[%clk 0:02:38]} 12. bxc3 {[%clk 0:02:43]}  Re7 {[%clk 0:02:32]} 13. c4 {[%clk 0:02:31]}  a6 {[%clk 0:02:19]} 14. Na3 {[%clk 0:02:27]}  c5 {[%clk 0:02:03]} 15. Ne2 {[%clk 0:02:14]}  dxc4 {[%clk 0:01:58]} 16. Nxc4 {[%clk 0:02:13]}  b5 {[%clk 0:01:55]} 17. Nb6 {[%clk 0:02:12]}  Bb7 {[%clk 0:01:37]} 18. Nxa8 {[%clk 0:01:58]}  Bxg2 {[%clk 0:01:32]} 19. Rg1 {[%clk 0:01:56]}  Bxa8 {[%clk 0:01:31]} 20. dxc5 {[%clk 0:01:57]}  Nbd7 {[%clk 0:01:28]} 21. Rc1 {[%clk 0:01:55]}  Ne5 {[%clk 0:01:22]} 22. Kd2 {[%clk 0:01:52]}  Nf3+ {[%clk 0:01:15]} 23. Kc3 {[%clk 0:01:52]}  Nxg1 {[%clk 0:01:10]} 24. Rxg1 {[%clk 0:01:38]}  Rc7 {[%clk 0:01:01]} 25. Kb4 {[%clk 0:01:38]}  Nd5+ {[%clk 0:00:59]} 26. Ka5 {[%clk 0:01:38]}  Rxc5 {[%clk 0:00:56]} 27. Rc1 {[%clk 0:01:38]}  Rxc1 {[%clk 0:00:49]} 28. Nxc1 {[%clk 0:01:39]}  Nc3 {[%clk 0:00:46]} 29. Kxa6 {[%clk 0:01:32]}  b4 {[%clk 0:00:43]} 30. Bc4 {[%clk 0:01:21]}  Be4 {[%clk 0:00:09]} 31. Bb3 {[%clk 0:01:05]}  Bb1 {[%clk 0:00:04]} 32. Ka5 {[%clk 0:01:03]}  Nd1 {[%clk 0:00:00]} 33. Kxb4 {[%clk 0:01:00]} 1-0

[Event "December 5 Late 2023"]
[Site "https://www.chess.com"]
[Date "2023.12.05"]
[Round "6"]
[White "Hamidi, Amir Mohammad"]
[Black "Khismatullin, Denis"]
[Result "1-0"]
[Board "20"]
[TimeControl "180+1"]
[WhiteFideId "12563285"]
[BlackFideId "4142578"]
[WhiteElo "2800"]
[BlackElo "2935"]
[WhiteTeam "IRI"]
[BlackTeam "RUS"]
[WhiteClock "0:00:19"]
[BlackClock "0:00:00"]

1. d4 {[%clk 0:03:00]}  Nf6 {[%clk 0:02:58]} 2. c4 {[%clk 0:03:01]}  e6 {[%clk 0:02:58]} 3. Nc3 {[%clk 0:03:01]}  d5 {[%clk 0:02:58]} 4. Bg5 {[%clk 0:03:01]}  Be7 {[%clk 0:02:57]} 5. e3 {[%clk 0:03:02]}  h6 {[%clk 0:02:57]} 6. Bh4 {[%clk 0:03:02]}  O-O {[%clk 0:02:57]} 7. Nf3 {[%clk 0:03:02]}  b6 {[%clk 0:02:56]} 8. cxd5 {[%clk 0:02:59]}  Nxd5 {[%clk 0:02:55]} 9. Nxd5 {[%clk 0:02:59]}  Bxh4 {[%clk 0:02:49]} 10. Nxc7 {[%clk 0:02:57]}  Bxf2+ {[%clk 0:02:46]} 11. Kxf2 {[%clk 0:02:58]}  Qxc7 {[%clk 0:02:46]} 12. Rc1 {[%clk 0:02:58]}  Qe7 {[%clk 0:02:44]} 13. Qc2 {[%clk 0:02:54]}  Nd7 {[%clk 0:02:38]} 14. Qc7 {[%clk 0:02:31]}  Qb4 {[%clk 0:02:28]} 15. Qc3 {[%clk 0:02:27]}  Qa4 {[%clk 0:02:22]} 16. a3 {[%clk 0:02:26]}  Nf6 {[%clk 0:02:21]} 17. Bd3 {[%clk 0:02:25]}  Bb7 {[%clk 0:02:14]} 18. Rhe1 {[%clk 0:02:20]}  Rac8 {[%clk 0:02:12]} 19. Qb4 {[%clk 0:02:19]}  Ng4+ {[%clk 0:02:07]} 20. Ke2 {[%clk 0:02:07]}  Qd7 {[%clk 0:02:08]} 21. h3 {[%clk 0:02:05]}  Nf6 {[%clk 0:02:04]} 22. Kf2 {[%clk 0:02:05]}  Bxf3 {[%clk 0:01:58]} 23. gxf3 {[%clk 0:02:03]}  Rcd8 {[%clk 0:01:44]} 24. Rcd1 {[%clk 0:01:59]}  Qc7 {[%clk 0:01:40]} 25. Bf1 {[%clk 0:01:34]}  Qh2+ {[%clk 0:01:33]} 26. Bg2 {[%clk 0:01:30]}  Nh5 {[%clk 0:01:24]} 27. Qd2 {[%clk 0:01:21]}  g5 {[%clk 0:01:13]} 28. Rh1 {[%clk 0:01:10]}  Qg3+ {[%clk 0:01:12]} 29. Kf1 {[%clk 0:01:10]}  e5 {[%clk 0:01:07]} 30. d5 {[%clk 0:01:09]}  e4 {[%clk 0:01:04]} 31. fxe4 {[%clk 0:01:08]}  Qe5 {[%clk 0:01:03]} 32. Kf2 {[%clk 0:01:06]}  Ng3 {[%clk 0:00:57]} 33. Rhe1 {[%clk 0:01:05]}  Nxe4+ {[%clk 0:00:51]} 34. Bxe4 {[%clk 0:01:06]}  Qxe4 {[%clk 0:00:51]} 35. Qd4 {[%clk 0:01:06]}  Rfe8 {[%clk 0:00:30]} 36. Qxe4 {[%clk 0:00:59]}  Rxe4 {[%clk 0:00:31]} 37. Kf3 {[%clk 0:01:00]}  f5 {[%clk 0:00:30]} 38. Rd3 {[%clk 0:00:59]}  Kf7 {[%clk 0:00:29]} 39. d6 {[%clk 0:00:54]}  Ke6 {[%clk 0:00:27]} 40. Red1 {[%clk 0:00:53]}  Rd7 {[%clk 0:00:27]} 41. Rd5 {[%clk 0:00:52]}  Re5 {[%clk 0:00:26]} 42. R5d4 {[%clk 0:00:51]}  h5 {[%clk 0:00:25]} 43. h4 {[%clk 0:00:46]}  g4+ {[%clk 0:00:22]} 44. Kf4 {[%clk 0:00:46]}  Re4+ {[%clk 0:00:20]} 45. Rxe4+ {[%clk 0:00:46]}  fxe4 {[%clk 0:00:21]} 46. Rd4 {[%clk 0:00:33]}  Rxd6 {[%clk 0:00:21]} 47. Rxe4+ {[%clk 0:00:34]}  Kf6 {[%clk 0:00:21]} 48. Ra4 {[%clk 0:00:35]}  Rd2 {[%clk 0:00:18]} 49. Rxa7 {[%clk 0:00:33]}  Rxb2 {[%clk 0:00:16]} 50. Rb7 {[%clk 0:00:33]}  Rf2+ {[%clk 0:00:16]} 51. Kg3 {[%clk 0:00:32]}  Rf3+ {[%clk 0:00:16]} 52. Kg2 {[%clk 0:00:33]}  Rxe3 {[%clk 0:00:16]} 53. Rxb6+ {[%clk 0:00:33]}  Kf5 {[%clk 0:00:15]} 54. Rb5+ {[%clk 0:00:33]}  Re5 {[%clk 0:00:14]} 55. Rb2 {[%clk 0:00:29]}  Ra5 {[%clk 0:00:13]} 56. Ra2 {[%clk 0:00:26]}  Ra4 {[%clk 0:00:10]} 57. Kg3 {[%clk 0:00:26]}  Ke4 {[%clk 0:00:10]} 58. Re2+ {[%clk 0:00:25]}  Kd4 {[%clk 0:00:09]} 59. Ra2 {[%clk 0:00:25]}  Kc3 {[%clk 0:00:09]} 60. Rf2 {[%clk 0:00:20]}  Ra5 {[%clk 0:00:06]} 61. a4 {[%clk 0:00:19]}  Rxa4 {[%clk 0:00:03]} 62. Rf5 {[%clk 0:00:19]}  Kd3 {[%clk 0:00:02]} 63. Rxh5 {[%clk 0:00:20]}  Ke3 {[%clk 0:00:01]} 64. Re5+ {[%clk 0:00:19]}  Kd4 {[%clk 0:00:01]} 65. Re8 {[%clk 0:00:18]}  Kd5 {[%clk 0:00:00]} 66. h5 {[%clk 0:00:19]} 1-0

[Event "December 5 Late 2023"]
[Site "https://www.chess.com"]
[Date "2023.12.05"]
[Round "6"]
[White "Sattarov, Bobir"]
[Black "Kamsky, Gata"]
[Result "1/2-1/2"]
[Board "21"]
[TimeControl "180+1"]
[WhiteFideId "14203081"]
[BlackFideId "2000024"]
[WhiteElo "2735"]
[BlackElo "2935"]
[WhiteTeam "UZB"]
[BlackTeam "USA"]
[WhiteClock "0:00:04"]
[BlackClock "0:00:14"]

1. e4 {[%clk 0:03:00]}  c5 {[%clk 0:02:51]} 2. Nf3 {[%clk 0:03:00]}  e6 {[%clk 0:02:51]} 3. d4 {[%clk 0:02:59]}  cxd4 {[%clk 0:02:51]} 4. Nxd4 {[%clk 0:03:00]}  a6 {[%clk 0:02:52]} 5. g3 {[%clk 0:02:58]}  b6 {[%clk 0:02:43]} 6. Bg2 {[%clk 0:02:58]}  Bb7 {[%clk 0:02:43]} 7. O-O {[%clk 0:02:58]}  Nc6 {[%clk 0:02:39]} 8. Nc3 {[%clk 0:02:57]}  Nge7 {[%clk 0:02:35]} 9. Re1 {[%clk 0:02:54]}  Nxd4 {[%clk 0:02:31]} 10. Qxd4 {[%clk 0:02:55]}  Nc6 {[%clk 0:02:31]} 11. Qd2 {[%clk 0:02:54]}  Bc5 {[%clk 0:02:29]} 12. b3 {[%clk 0:02:50]}  O-O {[%clk 0:02:26]} 13. Bb2 {[%clk 0:02:48]}  Qc7 {[%clk 0:02:22]} 14. Rad1 {[%clk 0:02:46]}  Rfd8 {[%clk 0:02:20]} 15. e5 {[%clk 0:02:35]}  Bb4 {[%clk 0:02:13]} 16. a3 {[%clk 0:02:31]}  Bxc3 {[%clk 0:02:13]} 17. Qxc3 {[%clk 0:02:30]}  Rac8 {[%clk 0:02:11]} 18. Rd6 {[%clk 0:02:23]}  Ne7 {[%clk 0:02:10]} 19. Qxc7 {[%clk 0:02:22]}  Rxc7 {[%clk 0:02:09]} 20. Bd4 {[%clk 0:02:13]}  Bxg2 {[%clk 0:02:04]} 21. Bxb6 {[%clk 0:02:12]}  Bc6 {[%clk 0:01:26]} 22. Bxc7 {[%clk 0:02:10]}  Rc8 {[%clk 0:01:26]} 23. Ba5 {[%clk 0:02:05]}  Nf5 {[%clk 0:01:24]} 24. Rd2 {[%clk 0:02:05]}  h5 {[%clk 0:01:24]} 25. h4 {[%clk 0:02:02]}  f6 {[%clk 0:01:23]} 26. c4 {[%clk 0:02:01]}  Kf7 {[%clk 0:01:22]} 27. Bc3 {[%clk 0:01:45]}  g5 {[%clk 0:01:13]} 28. hxg5 {[%clk 0:01:15]}  fxg5 {[%clk 0:01:13]} 29. Red1 {[%clk 0:01:11]}  Rc7 {[%clk 0:01:09]} 30. Kh2 {[%clk 0:01:02]}  g4 {[%clk 0:01:08]} 31. Ba5 {[%clk 0:00:50]}  Rb7 {[%clk 0:01:06]} 32. b4 {[%clk 0:00:50]}  Ba4 {[%clk 0:01:03]} 33. Rb1 {[%clk 0:00:48]}  Bc6 {[%clk 0:00:52]} 34. b5 {[%clk 0:00:44]}  axb5 {[%clk 0:00:48]} 35. cxb5 {[%clk 0:00:45]}  Rxb5 {[%clk 0:00:42]} 36. Rxb5 {[%clk 0:00:44]}  Bxb5 {[%clk 0:00:43]} 37. Bb6 {[%clk 0:00:37]}  Ne7 {[%clk 0:00:39]} 38. Bc5 {[%clk 0:00:34]}  Nd5 {[%clk 0:00:39]} 39. Rb2 {[%clk 0:00:32]}  Bc6 {[%clk 0:00:39]} 40. Bd4 {[%clk 0:00:29]}  Kg6 {[%clk 0:00:35]} 41. Rc2 {[%clk 0:00:27]}  Kf5 {[%clk 0:00:29]} 42. Re2 {[%clk 0:00:19]}  Bb5 {[%clk 0:00:28]} 43. Re1 {[%clk 0:00:19]}  Bc6 {[%clk 0:00:28]} 44. Kg1 {[%clk 0:00:19]}  Kg5 {[%clk 0:00:27]} 45. Ra1 {[%clk 0:00:16]}  Ba4 {[%clk 0:00:27]} 46. Kf1 {[%clk 0:00:16]}  h4 {[%clk 0:00:26]} 47. gxh4+ {[%clk 0:00:16]}  Kxh4 {[%clk 0:00:27]} 48. Ke2 {[%clk 0:00:16]}  Kg5 {[%clk 0:00:27]} 49. Kd3 {[%clk 0:00:15]}  Kf4 {[%clk 0:00:27]} 50. Kc4 {[%clk 0:00:14]}  Ke4 {[%clk 0:00:27]} 51. Re1+ {[%clk 0:00:13]}  Kf3 {[%clk 0:00:27]} 52. Kc5 {[%clk 0:00:12]}  Kg2 {[%clk 0:00:22]} 53. Kd6 {[%clk 0:00:11]}  Kf3 {[%clk 0:00:23]} 54. Rb1 {[%clk 0:00:09]}  Ke4 {[%clk 0:00:22]} 55. Rd1 {[%clk 0:00:08]}  Kf3 {[%clk 0:00:22]} 56. Rc1 {[%clk 0:00:08]}  Ke4 {[%clk 0:00:22]} 57. Bc5 {[%clk 0:00:08]}  Kf3 {[%clk 0:00:21]} 58. Rg1 {[%clk 0:00:07]}  Kf4 {[%clk 0:00:18]} 59. Rg3 {[%clk 0:00:07]}  Bc6 {[%clk 0:00:18]} 60. Rd3 {[%clk 0:00:06]}  Ke4 {[%clk 0:00:17]} 61. Rd4+ {[%clk 0:00:06]}  Kf3 {[%clk 0:00:17]} 62. a4 {[%clk 0:00:06]}  Nf4 {[%clk 0:00:15]} 63. a5 {[%clk 0:00:04]}  Nh3 {[%clk 0:00:14]} 64. Rd3+ {[%clk 0:00:04]}  Ke4 {[%clk 0:00:13]} 65. Re3+ {[%clk 0:00:04]}  Kf4 {[%clk 0:00:13]} 66. Rg3 {[%clk 0:00:04]}  Kf5 {[%clk 0:00:12]} 67. a6 {[%clk 0:00:04]}  Ng5 {[%clk 0:00:12]} 68. Kc7 {[%clk 0:00:03]}  Ne4 {[%clk 0:00:12]} 69. Be3 {[%clk 0:00:01]}  Nxg3 {[%clk 0:00:12]} 70. fxg3 {[%clk 0:00:01]}  Kxe5 {[%clk 0:00:13]} 71. Bf4+ {[%clk 0:00:01]}  Ke4 {[%clk 0:00:13]} 72. Kd6 {[%clk 0:00:01]}  Kf3 {[%clk 0:00:13]} 73. Ke5 {[%clk 0:00:01]}  Kg2 {[%clk 0:00:13]} 74. a7 {[%clk 0:00:01]}  Kf3 {[%clk 0:00:13]} 75. Kd6 {[%clk 0:00:01]}  Ke4 {[%clk 0:00:13]} 76. Be5 {[%clk 0:00:01]}  Kf3 {[%clk 0:00:13]} 77. Bf4 {[%clk 0:00:02]}  Ke4 {[%clk 0:00:13]} 78. Be5 {[%clk 0:00:03]}  Kf3 {[%clk 0:00:14]} 79. Bf4 {[%clk 0:00:04]} 1/2-1/2

[Event "December 5 Late 2023"]
[Site "https://www.chess.com"]
[Date "2023.12.05"]
[Round "6"]
[White "Sjugirov, Sanan"]
[Black "Krzyzanowski, Marcin"]
[Result "1/2-1/2"]
[Board "22"]
[TimeControl "180+1"]
[WhiteFideId "4189302"]
[BlackFideId "1132199"]
[WhiteElo "2933"]
[BlackElo "2728"]
[WhiteTeam "HUN"]
[BlackTeam "POL"]
[WhiteClock "0:00:03"]
[BlackClock "0:00:02"]

1. e4 {[%clk 0:03:00]}  c5 {[%clk 0:02:59]} 2. Nf3 {[%clk 0:03:00]}  d6 {[%clk 0:02:59]} 3. d4 {[%clk 0:02:58]}  cxd4 {[%clk 0:02:59]} 4. Nxd4 {[%clk 0:02:59]}  Nf6 {[%clk 0:03:00]} 5. Nc3 {[%clk 0:03:00]}  a6 {[%clk 0:03:00]} 6. Be3 {[%clk 0:03:01]}  e5 {[%clk 0:02:59]} 7. Nf3 {[%clk 0:03:01]}  Be7 {[%clk 0:02:55]} 8. Bc4 {[%clk 0:03:01]}  O-O {[%clk 0:02:55]} 9. O-O {[%clk 0:03:01]}  Be6 {[%clk 0:02:52]} 10. Bb3 {[%clk 0:03:01]}  Nc6 {[%clk 0:02:47]} 11. Qe2 {[%clk 0:03:02]}  Na5 {[%clk 0:02:40]} 12. Rfd1 {[%clk 0:03:02]}  Nxb3 {[%clk 0:02:34]} 13. cxb3 {[%clk 0:03:03]}  Qa5 {[%clk 0:02:18]} 14. Bg5 {[%clk 0:03:02]}  Rac8 {[%clk 0:02:13]} 15. Bxf6 {[%clk 0:03:01]}  Bxf6 {[%clk 0:02:13]} 16. Nd5 {[%clk 0:02:46]}  Bd8 {[%clk 0:01:57]} 17. a3 {[%clk 0:02:23]}  f5 {[%clk 0:01:43]} 18. b4 {[%clk 0:02:21]}  Qa4 {[%clk 0:01:13]} 19. exf5 {[%clk 0:02:18]}  Bxf5 {[%clk 0:01:07]} 20. Ne3 {[%clk 0:02:13]}  Qc6 {[%clk 0:00:53]} 21. Nxf5 {[%clk 0:01:57]}  Rxf5 {[%clk 0:00:54]} 22. Qd2 {[%clk 0:01:57]}  Rxf3 {[%clk 0:00:30]} 23. gxf3 {[%clk 0:01:43]}  Qxf3 {[%clk 0:00:24]} 24. Qd3 {[%clk 0:00:56]}  Qg4+ {[%clk 0:00:17]} 25. Qg3 {[%clk 0:00:56]}  Qe6 {[%clk 0:00:11]} 26. Rac1 {[%clk 0:00:56]}  Rxc1 {[%clk 0:00:09]} 27. Rxc1 {[%clk 0:00:57]}  Bb6 {[%clk 0:00:08]} 28. h3 {[%clk 0:00:50]}  h6 {[%clk 0:00:08]} 29. Rd1 {[%clk 0:00:41]}  Bd4 {[%clk 0:00:04]} 30. Rd2 {[%clk 0:00:38]}  d5 {[%clk 0:00:03]} 31. Rc2 {[%clk 0:00:35]}  Qf5 {[%clk 0:00:01]} 32. Rc1 {[%clk 0:00:23]}  e4 {[%clk 0:00:01]} 33. Rd1 {[%clk 0:00:18]}  Qf6 {[%clk 0:00:02]} 34. Kg2 {[%clk 0:00:14]}  Kh7 {[%clk 0:00:02]} 35. b3 {[%clk 0:00:14]}  b5 {[%clk 0:00:02]} 36. Rd2 {[%clk 0:00:12]}  h5 {[%clk 0:00:03]} 37. h4 {[%clk 0:00:11]}  g6 {[%clk 0:00:03]} 38. Qg5 {[%clk 0:00:11]}  Qf3+ {[%clk 0:00:03]} 39. Kg1 {[%clk 0:00:11]}  e3 {[%clk 0:00:03]} 40. Rxd4 {[%clk 0:00:02]}  Qxf2+ {[%clk 0:00:03]} 41. Kh1 {[%clk 0:00:03]}  Qf1+ {[%clk 0:00:03]} 42. Kh2 {[%clk 0:00:03]}  e2 {[%clk 0:00:02]} 43. Qe7+ {[%clk 0:00:03]}  Kh6 {[%clk 0:00:02]} 44. Qg5+ {[%clk 0:00:03]}  Kh7 {[%clk 0:00:03]} 45. Rxd5 {[%clk 0:00:02]}  Qf2+ {[%clk 0:00:03]} 46. Kh3 {[%clk 0:00:02]}  Qf3+ {[%clk 0:00:03]} 47. Kh2 {[%clk 0:00:03]}  Qf2+ {[%clk 0:00:02]} 48. Kh3 {[%clk 0:00:03]}  Qf1+ {[%clk 0:00:02]} 49. Kh2 {[%clk 0:00:03]}  Qf2+ {[%clk 0:00:02]} 1/2-1/2

[Event "December 5 Late 2023"]
[Site "https://www.chess.com"]
[Date "2023.12.05"]
[Round "6"]
[White "Sivakumar, Shaaketh"]
[Black "Maksimovic, Bojan"]
[Result "0-1"]
[Board "23"]
[TimeControl "180+1"]
[WhiteFideId "30940176"]
[BlackFideId "14408120"]
[WhiteElo "2600"]
[BlackElo "2921"]
[WhiteTeam "USA"]
[BlackTeam "BIH"]
[WhiteClock "0:01:26"]
[BlackClock "0:01:07"]

1. Nf3 {[%clk 0:03:00]}  g6 {[%clk 0:02:58]} 2. d4 {[%clk 0:02:52]}  Bg7 {[%clk 0:02:47]} 3. e4 {[%clk 0:02:50]}  d5 {[%clk 0:02:47]} 4. Nc3 {[%clk 0:02:49]}  c6 {[%clk 0:02:38]} 5. Be3 {[%clk 0:02:43]}  dxe4 {[%clk 0:02:38]} 6. Nxe4 {[%clk 0:02:43]}  Nf6 {[%clk 0:02:39]} 7. Nxf6+ {[%clk 0:02:42]}  exf6 {[%clk 0:02:40]} 8. Bd3 {[%clk 0:02:38]}  O-O {[%clk 0:02:38]} 9. c3 {[%clk 0:02:38]}  a5 {[%clk 0:02:36]} 10. O-O {[%clk 0:02:38]}  Na6 {[%clk 0:02:34]} 11. Qd2 {[%clk 0:02:38]}  Re8 {[%clk 0:02:34]} 12. Rfe1 {[%clk 0:02:37]}  Nc7 {[%clk 0:02:32]} 13. Bh6 {[%clk 0:02:37]}  Be6 {[%clk 0:02:32]} 14. Bxg7 {[%clk 0:02:37]}  Kxg7 {[%clk 0:02:33]} 15. Bc2 {[%clk 0:02:33]}  Qd6 {[%clk 0:02:26]} 16. b3 {[%clk 0:02:33]}  Bd5 {[%clk 0:02:23]} 17. Bd1 {[%clk 0:02:31]}  Rxe1+ {[%clk 0:02:20]} 18. Nxe1 {[%clk 0:02:31]}  Re8 {[%clk 0:02:08]} 19. c4 {[%clk 0:02:30]}  Be4 {[%clk 0:01:47]} 20. Nc2 {[%clk 0:02:28]}  Ne6 {[%clk 0:01:39]} 21. Qxa5 {[%clk 0:01:48]}  Bxc2 {[%clk 0:01:26]} 22. Bxc2 {[%clk 0:01:49]}  Nxd4 {[%clk 0:01:26]} 23. Rd1 {[%clk 0:01:49]}  Qf4 {[%clk 0:01:27]} 24. Bd3 {[%clk 0:01:47]}  Qg4 {[%clk 0:01:22]} 25. Rc1 {[%clk 0:01:39]}  Nf3+ {[%clk 0:01:14]} 26. Kh1 {[%clk 0:01:37]}  Qf4 {[%clk 0:01:13]} 27. gxf3 {[%clk 0:01:32]}  Qxc1+ {[%clk 0:01:13]} 28. Kg2 {[%clk 0:01:31]}  Qg5+ {[%clk 0:01:14]} 29. Qxg5 {[%clk 0:01:31]}  fxg5 {[%clk 0:01:15]} 30. a4 {[%clk 0:01:30]}  c5 {[%clk 0:01:10]} 31. Be4 {[%clk 0:01:28]}  b6 {[%clk 0:01:10]} 32. Bc6 {[%clk 0:01:28]}  Re7 {[%clk 0:01:08]} 33. Kf1 {[%clk 0:01:26]}  f5 {[%clk 0:01:08]} 34. Bd5 {[%clk 0:01:26]}  Kf6 {[%clk 0:01:08]} 35. h4 {[%clk 0:01:27]}  gxh4 {[%clk 0:01:08]} 36. f4 {[%clk 0:01:26]}  h6 {[%clk 0:01:07]} 0-1